[Event "41st Zalakaros Festival 2022"]
[Site "Zalakaros"]
[Date "2022.06.08"]
[Round "4.4"]
[White "Papp, Levente"]
[Black "Bokorovics, Bertalan"]
[Result "1-0"]
[ECO "E62"]
[WhiteElo "2401"]
[BlackElo "2221"]
[Annotator "TA"]
[PlyCount "49"]
[EventDate "2022.06.05"]
[EventType "swiss"]
[EventCountry "HUN"]
[SourceTitle "playchess.com"]
[Source "ChessBase"]
[SourceQuality "1"]
[TimeControl "40/5400+30:1800+30"]

{[%evp 19,49,21,26,24,35,24,54,48,50,46,58,58,95,85,92,89,107,103,129,126,129,122,157,125,185,182,175,175,238,224,467,457]} 1. d4 {[%emt 0:01:24]} Nf6 {[%emt 0:00:33]} 2. Nf3 {[%emt 0:00:13]} g6 {[%emt 0:00:17]} 3. c4 {[%emt 0:00:07]} Bg7 {[%emt 0:00:05]} 4. Nc3 {[%emt 0:00:06]} O-O {[%emt 0:00:10]} 5. g3 {[%emt 0:00:05]} d6 {[%emt 0:00:44]} 6. Bg2 {[%emt 0:00:06]} Nc6 {[%emt 0:01:02]} 7. d5 {[%emt 0:00:18]} Na5 {[%emt 0:00:13]} 8. b3 {[%emt 0:00:07]} c5 {[%emt 0:01:08]} 9. Bb2 {[%emt 0:00:12]} a6 {[%emt 0:05:04]} 10. O-O {[%emt 0:00:28]} Rb8 {[%emt 0:02:30]} 11. a4 {[%emt 0:00:21] Against b5. E63: King's Indian: Fianchetto: Panno Variation with 7...a6.} Re8 {[%emt 0:07:20]} 12. Ra2 {[%emt 0:01:45] [#]} Bd7 $146 {[%emt 0:05:15]} ({Predecessor:} 12... e6 13. dxe6 Bxe6 14. Ng5 Bf5 15. h3 h6 16. e4 Bc8 17. Nf3 Nc6 18. Nd2 Nb4 {½-½ (38) Bacrot,E (2635)-Maiwald,J (2426) Germany 2022}) 13. Nd2 {[%emt 0:01:08] White is slightly better.} e5 {[%emt 0:07:35]} 14. dxe6 {[%emt 0:03:21]} Rxe6 {[%emt 0:04:49]} 15. Nd5 {[%emt 0:16:05]} Bc6 {[%emt 0:11:50]} 16. e3 {[%emt 0:00:27]} Bxd5 {[%emt 0:02:29]} 17. cxd5 {[%emt 0:01:03]} Re8 {[%emt 0:00:38]} 18. Qa1 {[%emt 0:00:36]} Qe7 {[%emt 0:04:06]} 19. Rb1 {[%emt 0:09:48]} Rec8 {[%emt 0:02:17]} 20. Bf1 {[%emt 0:08:22] A strong pair of Bishops.} h5 {[%emt 0:07:38]} 21. h4 {[%emt 0:00:39]} Ne8 {[%emt 0:02:13] [#]} (21... Qd8 $16 22. Bc3 Ne8) 22. Bxg7 $1 $18 {[%emt 0:00:53]} Nxg7 {[%emt 0:00:01]} 23. Qc3 {[%emt 0:01:31]} Qc7 {[%emt 0:01:08]} (23... b6 $142 24. Bxa6 Rc7) 24. Bh3 {[%emt 0:03:46]} Rd8 $2 {[%emt 0:01:39]} (24... f5 25. Bf1 Qd8) 25. b4 {[%emt 0:00:46] White took control after the opening.  Weighted Error Value: White=0.04 (flawless) /Black=0.41} 1-0

[Event "41st Zalakaros Festival 2022"]
[Site "Zalakaros"]
[Date "2022.06.08"]
[Round "4.5"]
[White "Pasztor, Ferenc"]
[Black "Okhotnik, Vladimir"]
[Result "0-1"]
[ECO "A43"]
[WhiteElo "2195"]
[BlackElo "2336"]
[Annotator "TA"]
[PlyCount "70"]
[EventDate "2022.06.05"]
[EventType "swiss"]
[EventCountry "HUN"]
[SourceTitle "playchess.com"]
[Source "ChessBase"]
[SourceQuality "1"]
[TimeControl "40/5400+30:1800+30"]

{[%evp 10,70,60,40,61,43,47,0,0,-6,4,-31,-34,-62,-31,-20,-22,-44,-27,-70,-75,-73,-33,-48,-50,-43,-51,-114,-118,-124,-114,-128,-137,-152,-138,-158,-128,-131,-122,-168,-172,-248,-251,-253,-125,-198,-152,-226,-129,-106,-106,-124,-117,-137,-144,-657,-649,-640,-608,-589,-581,-1303,-1290]} 1. d4 {[%emt 0:00:35]} g6 {[%emt 0:01:08]} 2. c4 {[%emt 0:00:10]} Bg7 {[%emt 0:00:32]} 3. Nc3 {[%emt 0:00:13]} c5 {[%emt 0:00:09]} 4. d5 {[%emt 0:01:36]} Bxc3+ {[%emt 0:00:07]} 5. bxc3 {[%emt 0:00:15]} f5 {[%emt 0:00:01]} 6. f3 {[%emt 0:02:56]} Qa5 {[%emt 0:00:17] A40: Unusual replies to 1 d4.} 7. Bd2 {[%emt 0:00:44]} Nf6 {[%emt 0:00:25]} 8. e3 {[%emt 0:00:26]} (8. e4 $14 {should be considered.}) 8... d6 $11 {[%emt 0:00:10] [#] The position is equal.} 9. Ne2 $146 {[%emt 0:08:53]} ({Predecessor:} 9. Nh3 Nbd7 10. Be2 Nb6 11. O-O Bd7 12. Qb3 Qa6 13. Nf4 Ba4 14. Qb1 O-O-O 15. Ne6 {0-1 (82) Bets,A (2383)-Ardelean,G (2444) Bucharest 2002}) 9... Nbd7 {[%emt 0:03:07]} 10. Nc1 {[%emt 0:00:58]} Ne5 {[%emt 0:02:52]} 11. f4 {[%emt 0:14:53]} Nf7 {[%emt 0:02:30]} 12. Bd3 {[%emt 0:00:53]} Bd7 {[%emt 0:01:21]} 13. a4 {[%emt 0:05:02]} e6 {[%emt 0:01:48]} 14. Qb3 {[%emt 0:06:12]} O-O {[%emt 0:02:11]} 15. O-O {[%emt 0:14:21]} Rab8 {[%emt 0:03:25]} 16. Qa2 {[%emt 0:07:28]} Rfe8 {[%emt 0:00:35]} 17. h3 {[%emt 0:03:32]} Rbc8 {[%emt 0:03:25]} 18. Qb3 {[%emt 0:02:15]} ({White should play} 18. Be1 $15) 18... Qc7 $17 {[%emt 0:00:38]} 19. Rb1 {[%emt 0:02:53]} b6 {[%emt 0:01:16]} 20. dxe6 {[%emt 0:00:33]} Rxe6 {[%emt 0:01:07]} 21. Be2 {[%emt 0:08:56]} Bc6 {[%emt 0:01:11]} 22. Bf3 {[%emt 0:00:15]} Ne4 {[%emt 0:01:02]} 23. Be1 {[%emt 0:01:19]} Nd8 {[%emt 0:00:59] Black is much more active.} 24. Rb2 {[%emt 0:05:59]} (24. Qa2 $17 {was called for.}) 24... Nb7 $19 {[%emt 0:00:23] Pair of Knights!} 25. g4 {[%emt 0:01:39]} (25. Qa2 $142) 25... Na5 {[%emt 0:00:04]} 26. Qa2 {[%emt 0:00:13]} Kh8 {[%emt 0:02:16]} (26... Nf6 $19 {has better winning chances.} 27. Bd5 Bxd5 28. cxd5 Rxe3 29. gxf5 Rce8) 27. Rg2 {[%emt 0:00:24]} (27. Nb3 $17) 27... Qf7 {[%emt 0:00:50]} (27... Nf6 $19 28. gxf5 gxf5) 28. Nb3 {[%emt 0:02:03]} (28. Nd3 $17) 28... Nxb3 {[%emt 0:04:53]} (28... Nxc4 $19 29. Nd4 Ree8 30. Nxc6 Rxc6 31. gxf5 d5 32. fxg6 Rxg6) 29. Qxb3 $17 {[%emt 0:00:03]} Nf6 {[%emt 0:00:14]} 30. gxf5 {[%emt 0:04:22]} gxf5 {[%emt 0:00:08] Strongly threatening ...Bxf3.} ({Stronger than} 30... Rxe3 31. Bxc6 Rxc6 32. fxg6 hxg6 33. Qb1 $15) 31. Bh4 {[%emt 0:03:45]} Rxe3 {[%emt 0:03:33]} 32. Bd5 {[%emt 0:01:43][%mdl 8192] Loses the game.} (32. Bxc6 $17 Rxc6 33. Kh2) 32... Bxd5 $19 {[%emt 0:00:58] Black is clearly winning.} ({Don't go for} 32... Nxd5 $2 33. cxd5 Rg8 34. Rff2 Bxd5 35. Qxd5 Re1+ 36. Kh2 Qxd5 37. Bf6+ Rg7 38. Bxg7+ Kg8 39. Rd2 $19) 33. Bxf6+ {[%emt 0:00:37]} Qxf6 {[%emt 0:00:05]} 34. cxd5 {[%emt 0:00:07]} Rxh3 {[%emt 0:00:23] [#] ( -> ...Qh4)} 35. Qc2 {[%emt 0:01:05]} Qh4 {[%emt 0:02:50] Weighted Error Value: White=0.58/Black=0.14 (very precise)} 0-1

[Event "41st Zalakaros Festival 2022"]
[Site "Zalakaros"]
[Date "2022.06.08"]
[Round "4.6"]
[White "Horvath, Adam"]
[Black "Haselbach, David"]
[Result "1-0"]
[ECO "B00"]
[WhiteElo "2513"]
[BlackElo "2114"]
[Annotator "TA"]
[PlyCount "73"]
[EventDate "2022.06.05"]
[EventType "swiss"]
[EventCountry "HUN"]
[SourceTitle "playchess.com"]
[Source "ChessBase"]
[SourceQuality "1"]
[TimeControl "40/5400+30:1800+30"]

{[%evp 14,73,50,39,60,50,85,67,64,60,80,42,69,45,54,55,68,71,118,109,165,165,218,129,145,151,151,132,128,132,142,118,238,200,269,263,263,230,269,250,289,284,276,140,136,115,143,143,478,468,597,605,573,457,724,717,1716,1724,1947,1720,1710,1610]} 1. e4 {[%emt 0:00:39]} d6 {[%emt 0:00:35]} 2. d4 {[%emt 0:00:12]} Nf6 {[%emt 0:00:07]} 3. Bd3 {[%emt 0:01:07]} e5 {[%emt 0:02:49]} 4. c3 {[%emt 0:00:32]} Be7 {[%emt 0:06:22]} 5. Nf3 {[%emt 0:01:08]} Nbd7 {[%emt 0:00:22]} 6. O-O {[%emt 0:00:26]} c6 {[%emt 0:00:13]} 7. Nbd2 {[%emt 0:06:17]} Qc7 {[%emt 0:03:13]} 8. Re1 {[%emt 0:08:19]} h6 {[%emt 0:05:33] B07: Pirc Defence: Miscellaneous Systems.} 9. Nh4 {[%emt 0:14:58]} g6 {[%emt 0:02:00]} 10. Nf1 {[%emt 0:00:06]} Nf8 {[%emt 0:02:05] [#] White is slightly better.} 11. Nf3 $146 {[%emt 0:01:51]} ({Predecessor:} 11. Ng3 Ne6 12. Nf3 Ng7 13. Bf1 Bg4 14. Be3 Kf8 15. Be2 Be6 16. dxe5 dxe5 17. Nd2 {½-½ (42) Degenhardt,H (2257)-Ackermann,H (2352) Niederhausen 2016}) 11... Ne6 {[%emt 0:04:14]} 12. Ne3 {[%emt 0:06:50]} Nh5 {[%emt 0:04:18]} 13. b3 {[%emt 0:06:04]} Ng5 {[%emt 0:01:44]} 14. Nd2 {[%emt 0:09:02]} Bf6 {[%emt 0:04:41]} 15. Ba3 {[%emt 0:12:03]} Nf4 {[%emt 0:06:33]} (15... O-O $142) 16. Bf1 $16 {[%emt 0:01:51]} exd4 {[%emt 0:04:40]} (16... O-O $16) 17. Nec4 {[%emt 0:10:32]} c5 {[%emt 0:08:37] [#]} (17... dxc3 $2 18. Nxd6+ Kd8 19. N2c4 $18) (17... Be7 $142) 18. e5 {[%emt 0:04:33]} ({White should try} 18. Nxd6+ $1 $18 {[%mdl 512]} Qxd6 19. e5) 18... dxe5 {[%emt 0:00:55]} 19. cxd4 {[%emt 0:00:48]} O-O {[%emt 0:00:53]} (19... cxd4 $2 20. Rc1 Kd8 21. Nxe5 $1 $18 {[%mdl 512]}) 20. dxe5 {[%emt 0:02:24]} ({Don't take} 20. Bxc5 Rd8 $14) 20... Bg7 {[%emt 0:00:19]} 21. h4 {[%emt 0:01:02]} Nge6 {[%emt 0:00:36]} 22. Bb2 {[%emt 0:04:29]} g5 {[%emt 0:05:04]} (22... Bd7 $16 {was worth a try.}) 23. Ne4 {[%emt 0:01:09][%cal Bd2e4,Be4f6,Bf6h5][%mdl 32]} Rd8 {[%emt 0:04:26]} 24. Qf3 {[%emt 0:02:32] Threatens to win with hxg5.} Ng6 {[%emt 0:01:55]} 25. hxg5 {[%emt 0:00:40]} Nxg5 {[%emt 0:00:26]} 26. Nf6+ {[%emt 0:00:55]} Kh8 {[%emt 0:03:31]} 27. Qh5 {[%emt 0:00:20]} Be6 {[%emt 0:09:13]} 28. Nd6 {[%emt 0:02:01]} (28. Re3 $18) 28... Nf4 {[%emt 0:00:37]} 29. Qh4 {[%emt 0:00:28]} Ng6 {[%emt 0:00:07] [#]} 30. Qh2 {[%emt 0:00:20] aiming for Nh5.} Nh7 $2 {[%emt 0:08:16][%mdl 8192] Loses the game.} (30... Nh3+ $16 {is more resistant.} 31. gxh3 Bxf6) 31. Nh5 $18 {[%emt 0:00:35] White is clearly winning.} Bf8 {[%emt 0:01:17]} 32. f4 {[%emt 0:00:28]} c4 {[%emt 0:02:06]} 33. Bxc4 {[%emt 0:01:04] Active counter play!} Qc5+ {[%emt 0:00:43]} (33... Bxc4 $142 34. Nxc4 Bc5+ 35. Kh1 Bd4 36. Bxd4 Rxd4) 34. Kh1 {[%emt 0:00:23]} Qf2 {[%emt 0:00:23]} 35. Re2 {[%emt 0:00:57]} Qh4 {[%emt 0:00:41]} 36. Qxh4 {[%emt 0:00:16]} Nxh4 {[%emt 0:00:11]} 37. Nxf7+ {[%emt 0:00:39] Weighted Error Value: White=0.21 (precise) /Black=0.50} 1-0

[Event "41st Zalakaros Festival 2022"]
[Site "Zalakaros"]
[Date "2022.06.08"]
[Round "4.7"]
[White "Farkas, Gabor"]
[Black "Boronyak, Arpad"]
[Result "1-0"]
[ECO "A59"]
[WhiteElo "2324"]
[BlackElo "2126"]
[Annotator "TA"]
[PlyCount "83"]
[EventDate "2022.06.05"]
[EventType "swiss"]
[EventCountry "HUN"]
[SourceTitle "playchess.com"]
[Source "ChessBase"]
[SourceQuality "1"]
[TimeControl "40/5400+30:1800+30"]

{[%evp 22,83,66,63,118,103,237,239,256,200,201,205,199,189,200,202,201,146,164,156,162,157,153,164,144,93,127,142,209,208,258,203,338,314,296,274,610,606,974,996,984,891,770,0,586,586,557,548,956,550,794,697,943,914,847,833,29974,29975,29968,2733,29971,29973,29982,29976]} 1. d4 {[%emt 0:00:33]} Nf6 {[%emt 0:00:40]} 2. c4 {[%emt 0:00:07]} c5 {[%emt 0:00:13]} 3. d5 {[%emt 0:00:26]} b5 {[%emt 0:00:13]} 4. cxb5 {[%emt 0:00:21]} a6 {[%emt 0:00:07]} 5. bxa6 {[%emt 0:00:13]} Bxa6 {[%emt 0:00:06]} 6. Nc3 {[%emt 0:01:08]} d6 {[%emt 0:00:18]} 7. Nf3 {[%emt 0:01:54]} g6 {[%emt 0:00:14]} 8. e4 {[%emt 0:00:37]} Bxf1 {[%emt 0:00:22]} 9. Kxf1 {[%emt 0:00:06]} Bg7 {[%emt 0:00:08]} 10. g3 {[%emt 0:00:07]} O-O {[%emt 0:01:41]} 11. Kg2 {[%emt 0:00:06]} Nbd7 {[%emt 0:01:46]} 12. Qe2 {[%emt 0:03:13]} Nb6 {[%emt 0:03:20] 12...Qb6 is a critical line. A59: Benko/Volga Gambit: White castles by hand.} (12... Qa5 $14) 13. a4 $16 {[%emt 0:00:25]} e6 {[%emt 0:01:16]} (13... Qc8 $16 {was worth a try.}) 14. dxe6 $18 {[%emt 0:08:01]} fxe6 {[%emt 0:00:31] [#] White is clearly better.} 15. Bg5 $146 {[%emt 0:15:01]} ({Predecessor:} 15. Rd1 d5 16. Ng5 d4 17. Nb5 Qe7 18. b3 h6 19. Nf3 Nfd7 20. Ba3 d3 21. Qxd3 Bxa1 22. Rxa1 {0-1 (39) Tarasova,V (2226)-Gitelson,A (2214) Chess.com INT 2020}) 15... h6 {[%emt 0:11:58]} 16. Bxf6 {[%emt 0:05:45]} Qxf6 {[%emt 0:00:27]} 17. e5 $1 {[%emt 0:00:11]} dxe5 {[%emt 0:01:06][%cal Oe5e4]} 18. Ne4 {[%emt 0:00:08]} Qe7 {[%emt 0:00:38]} 19. Rhc1 {[%emt 0:10:20]} Nxa4 {[%emt 0:08:21]} 20. b3 {[%emt 0:01:13]} Nb6 {[%emt 0:01:31]} 21. Rxa8 {[%emt 0:00:49]} Rxa8 {[%emt 0:00:28]} 22. Rxc5 {[%emt 0:00:53] White is more active.} Nd5 {[%emt 0:00:52]} 23. Qc2 {[%emt 0:04:33]} ({Better is} 23. b4) 23... Qb7 {[%emt 0:09:43]} 24. Nd6 {[%emt 0:08:09][%csl LRb7,LRg6][%cal Be4d6,Bd6c4,Bc4e5,Be5g4][%mdl 32]} Qd7 {[%emt 0:01:34]} (24... Qe7 $16 {might work better.}) 25. Nc4 {[%emt 0:00:55]} g5 {[%emt 0:09:31]} 26. Ncxe5 {[%emt 0:03:44]} ({Don't take} 26. Nfxe5 $6 Qa7 27. Nd6 Qe7 $16) 26... Qb7 {[%emt 0:00:44]} (26... Qe7 $142 27. b4 (27. Rc8+ Rxc8 28. Qxc8+ Kh7 $16) 27... Qe8) 27. Qg6 {[%emt 0:01:31]} Nf6 {[%emt 0:01:10]} 28. Rc6 {[%emt 0:06:59] [#] Strongly threatening Nd4.} g4 $2 {[%emt 0:13:29]} (28... Qe7 29. Nd4 Qe8 30. Nxe6 (30. Rxe6 Qxg6 31. Nxg6 Ng4 $18) 30... Qxg6 31. Nxg6 Nd5) 29. Nd4 {[%emt 0:00:37]} Rc8 {[%emt 0:00:32]} 30. Nxg4 {[%emt 0:05:42] Pair of Knights!} Rf8 {[%emt 0:13:56]} 31. Ne5 {[%emt 0:06:22]} Rc8 {[%emt 0:01:31]} 32. Ng4 {[%emt 0:02:45]} Rf8 {[%emt 0:00:14]} 33. f3 {[%emt 0:02:32]} Nxg4 {[%emt 0:03:32]} 34. Qxe6+ {[%emt 0:00:57]} Kh7 {[%emt 0:01:16]} 35. Qe4+ {[%emt 0:01:03]} Kg8 {[%emt 0:02:25]} 36. Qxg4 {[%emt 0:01:45]} h5 {[%emt 0:04:19]} 37. Qe6+ {[%emt 0:00:08]} Kh8 {[%emt 0:00:06]} 38. Qd5 {[%emt 0:00:49][%cal Oc6h6] [#] Rh6+! would kill now.} Qa8 {[%emt 0:02:27]} 39. Qxh5+ {[%emt 0:00:09]} Kg8 {[%emt 0:00:05]} 40. Qd5+ {[%emt 0:00:00]} Kh8 {[%emt 0:00:00]} 41. Ne6 {[%emt 0:01:12]} Qa1 {[%emt 0:05:27]} 42. Nxf8 {[%emt 0:01:55] Weighted Error Value: White=0.37/Black=0.88} 1-0

[Event "41st Zalakaros Festival 2022"]
[Site "Zalakaros"]
[Date "2022.06.08"]
[Round "4.8"]
[White "Kiss, Mate Jozsef"]
[Black "Gyorkos, Lajos"]
[Result "1-0"]
[ECO "B48"]
[WhiteElo "2030"]
[BlackElo "2254"]
[Annotator "TA"]
[PlyCount "47"]
[EventDate "2022.06.05"]
[EventType "swiss"]
[EventCountry "HUN"]
[SourceTitle "playchess.com"]
[Source "ChessBase"]
[SourceQuality "1"]
[TimeControl "40/5400+30:1800+30"]

{[%evp 17,47,23,32,38,66,66,81,33,133,131,127,112,155,165,214,211,285,275,564,568,1130,1121,2320,2389,29982,29983,29983,29984,29984,29985,29985,237]} 1. e4 {[%emt 0:00:35]} c5 {[%emt 0:00:39]} 2. Nf3 {[%emt 0:00:07]} e6 {[%emt 0:00:11]} 3. d4 {[%emt 0:00:06]} cxd4 {[%emt 0:00:08]} 4. Nxd4 {[%emt 0:00:04]} Nc6 {[%emt 0:00:25]} 5. Nc3 {[%emt 0:00:38]} Qc7 {[%emt 0:00:15]} 6. Be3 {[%emt 0:00:17][%cal Bc1e3,Be3d4,Bd4e5][%mdl 32]} a6 {[%emt 0:00:26]} 7. a3 {[%emt 0:00:21]} Nf6 {[%emt 0:01:03]} 8. f4 {[%emt 0:00:33]} d6 {[%emt 0:00:29]} 9. Qf3 {[%emt 0:00:35]} Be7 {[%emt 0:00:24]} 10. O-O-O {[%emt 0:00:33] B82: Sicilian Scheveningen: 6 f4.} Nxd4 {[%emt 0:01:36]} 11. Bxd4 {[%emt 0:00:26]} ({Reject} 11. Rxd4 b5 $11) 11... b5 {[%emt 0:01:00] [#]} 12. e5 $146 {[%emt 0:21:09]} (12. Bxf6 $16 gxf6 13. Be2) ({Predecessor:} 12. g4 e5 13. fxe5 dxe5 14. Qg3 Bd6 15. Be3 Qc6 16. Bg5 Nd7 17. Qd3 Bc5 18. Nd5 {1-0 (37) Cornel,M (2458)-Konstantinov,M (2356) LSS email 2015}) 12... dxe5 {[%emt 0:00:23]} 13. Bxe5 $16 {[%emt 0:09:03]} ({Much weaker is} 13. Qxa8 $6 exd4 14. Nxb5 (14. Rxd4 O-O $15) 14... axb5 15. Bxb5+ Nd7 16. Rxd4 O-O $11) 13... Qb7 {[%emt 0:00:10]} 14. Qg3 {[%emt 0:00:55] White is much more active. The black rooks are badly placed.} O-O {[%emt 0:00:15]} 15. Bd3 $1 $36 {[%emt 0:01:08][%mdl 2048] White is on the roll.} Bd7 {[%emt 0:00:39]} (15... Ra7 $142 16. Be4 Qb6) 16. Qh4 $1 $18 {[%emt 0:06:26] Black must now prevent Bxf6.} h6 {[%emt 0:02:40] [#]} 17. g4 $1 {[%emt 0:00:53][%cal Bg2g4,Bg4g5][%mdl 32]} Bc6 $2 {[%emt 0:03:38] [#]} (17... b4 18. axb4 Qxb4) 18. g5 $1 {[%emt 0:09:19]} Ne8 {[%emt 0:17:11] [#]} (18... Ng4 19. Qxg4) 19. Bxg7 $1 {[%emt 0:02:01][%cal Oh4h6][%mdl 512]} Nxg7 {[%emt 0:00:17] [#]} (19... Bxg5 20. fxg5) 20. Qxh6 $1 {[%emt 0:00:35][%csl Gd3][%cal Rh6h7]} Nf5 {[%emt 0:04:12] [#]} (20... Be4 21. Bxe4) 21. Bxf5 $1 {[%emt 0:01:08] White mates.} exf5 {[%emt 0:00:03] [#]} 22. g6 $1 {[%emt 0:00:40]} fxg6 {[%emt 0:03:31]} 23. Qxg6+ {[%emt 0:00:07]} Kh8 {[%emt 0:00:08]} 24. Qh6+ {[%emt 0:02:22] Weighted Error Value: White=0.03 (flawless) /Black=1.05} 1-0

[Event "41st Zalakaros Festival 2022"]
[Site "Zalakaros"]
[Date "2022.06.08"]
[Round "4.9"]
[White "Leszko, Bence"]
[Black "Boguszlavszkij, Jevgenyij"]
[Result "1-0"]
[ECO "B06"]
[WhiteElo "2248"]
[BlackElo "2088"]
[Annotator "TA"]
[PlyCount "77"]
[EventDate "2022.06.05"]
[EventType "swiss"]
[EventCountry "HUN"]
[SourceTitle "playchess.com"]
[Source "ChessBase"]
[SourceQuality "1"]
[TimeControl "40/5400+30:1800+30"]

{[%evp 9,77,15,29,12,36,34,138,146,145,85,158,156,176,172,193,171,171,172,150,134,124,106,104,101,104,0,0,-34,-10,-71,-64,-89,-90,-82,0,-10,-6,-16,0,-109,-102,-132,-125,-131,-123,-128,-122,-158,-137,-162,-44,-41,-41,-48,-34,-83,697,690,1559,753,29972,29973,29972,29973,3011,2674,29986,29987,29984,29984]} 1. e4 {[%emt 0:00:31]} g6 {[%emt 0:05:02]} 2. d4 {[%emt 0:00:11]} c6 {[%emt 0:00:11]} 3. Nc3 {[%emt 0:00:16]} d5 {[%emt 0:00:24]} 4. h3 {[%emt 0:00:10]} Bg7 {[%emt 0:00:13]} 5. e5 {[%emt 0:00:12]} Nh6 {[%emt 0:04:08]} 6. g4 {[%emt 0:00:11][%cal Bg2g4,Bg4g5][%mdl 32] B15: Caro-Kann: 3 Nc3: 3...g6 and 3...dxe4 4 Nxe4 Nf6 5 Nxf6+ exf6.} f6 {[%emt 0:00:37]} 7. f4 {[%emt 0:00:04] [#]} f5 $146 {[%emt 0:03:44]} (7... fxe5 $14 8. dxe5 g5) ({Predecessor:} 7... O-O 8. Nf3 fxe5 9. dxe5 Qb6 10. Qe2 Na6 11. Nd1 Nc5 12. Nf2 Ne6 13. Nd3 c5 {½-½ (60) Antipov,M (2598)-Saric,I (2690) Linares 2018}) 8. g5 $16 {[%emt 0:10:05] White is clearly better.} Nf7 {[%emt 0:01:31]} 9. h4 {[%emt 0:00:07]} (9. Nf3 $142) 9... e6 {[%emt 0:06:21]} (9... h5 $142) 10. h5 {[%emt 0:02:38]} Nd7 {[%emt 0:07:09]} 11. Nf3 {[%emt 0:01:53]} gxh5 {[%emt 0:01:24]} 12. Nh4 {[%emt 0:02:34]} ({Resist} 12. Rxh5 Nf8 13. Qe2 Ng6 $16) 12... Nf8 {[%emt 0:00:32]} 13. Qxh5 {[%emt 0:01:16]} Bd7 {[%emt 0:03:06]} 14. b3 {[%emt 0:02:58] White is more active.} Qe7 {[%emt 0:13:14]} 15. Bd2 {[%emt 0:02:13]} O-O-O {[%emt 0:00:44]} 16. Na4 {[%emt 0:00:20]} Ng6 {[%emt 0:03:40]} 17. Qf3 {[%emt 0:02:54]} ({But not} 17. Nxg6 hxg6 18. Qf3 Rxh1 19. Qxh1 Rh8 $14) (17. Be2 $16) 17... Nxh4 $1 $15 {[%emt 0:01:26]} 18. Rxh4 {[%emt 0:00:04]} h6 {[%emt 0:00:19][%cal Rh6g5]} 19. Qg3 {[%emt 0:04:48]} (19. Qc3 $1 $11 b6 20. Qd3) 19... hxg5 $17 {[%emt 0:01:05]} 20. Rxh8 {[%emt 0:00:01]} Rxh8 {[%emt 0:01:28]} 21. fxg5 {[%emt 0:00:05]} Rh5 {[%emt 0:01:30]} (21... Rg8 $17) 22. Be2 $1 $11 {[%emt 0:04:02]} Rh1+ {[%emt 0:00:55]} 23. Bf1 {[%emt 0:00:01]} Rh5 $36 {[%emt 0:00:32][%cal Rf7g5][%mdl 2048] Black fights for an advantage.} 24. O-O-O {[%emt 0:18:38]} (24. Be2 $1 $11 {remains equal.} Rh1+ 25. Bf1) 24... Nxg5 $17 {[%emt 0:00:51]} 25. Bd3 {[%emt 0:00:13]} Ne4 {[%emt 0:02:50]} 26. Bxe4 {[%emt 0:00:05]} dxe4 {[%emt 0:00:52]} 27. Kb2 {[%emt 0:02:28]} Bf8 {[%emt 0:06:08]} 28. Kb1 {[%emt 0:04:05]} Be8 {[%emt 0:03:30]} 29. Nb2 {[%emt 0:01:33]} Rh7 {[%emt 0:01:54]} (29... b5 $19 {Strongly threatening ...Qh7.} 30. Rg1 Kb7) 30. Nc4 $1 $15 {[%emt 0:03:50]} Qg7 {[%emt 0:04:45]} 31. Qe3 {[%emt 0:02:47]} Qd7 {[%emt 0:06:36]} 32. d5 {[%emt 0:03:20]} (32. Rg1 $15) 32... exd5 $2 {[%emt 0:03:12][%mdl 8192] [#] Black cannot hold the game after this.} (32... b5 $17 33. Nd6+ Bxd6 34. exd6 cxd5 35. Qc3+ Qc6) 33. Qxa7 $1 $18 {[%emt 0:00:28] Intending Qa8+ and mate.} Kd8 {[%emt 0:00:18]} (33... dxc4 34. Qa8+) 34. Nb6 {[%emt 0:03:48]} (34. Bg5+ $142 Be7 35. Nb6) 34... Qg7 {[%emt 0:01:40]} 35. Qb8+ {[%emt 0:01:24]} Ke7 {[%emt 0:00:05]} 36. Bb4+ {[%emt 0:01:51]} Kf7 {[%emt 0:03:00]} 37. e6+ $1 {[%emt 0:00:00][%mdl 64] [#] Deflection, Decoy} ({Don't go for} 37. Rf1 $2 Bxb4 38. Rxf5+ Kg6 39. Rf6+ Kg5 40. Qxe8 e3 $19) 37... Kxe6 {[%emt 0:00:42]} 38. Qxe8+ {[%emt 0:00:06]} Be7 {[%emt 0:00:10]} 39. Qd7+ {[%emt 0:00:16] Weighted Error Value: White=0.21 (precise) /Black=0.81} 1-0